bitfinex/quotes_BTCUSD_20250619
["timestamp","ask_amount","ask_price","bid_price","bid_amount"]
[1750294617935,0.34,105140.0,105130.0,0.80488413]
[1750294619114,0.29571153,105160.0,105150.0,0.21873404]
[1750294619334,0.39152347,105160.0,105150.0,0.41231404]
[1750294619536,0.3820147,105160.0,105150.0,0.41231404]
[1750294620291,0.39152347,105160.0,105150.0,0.41231404]
[1750294620540,0.3820147,105160.0,105150.0,0.41231404]
[1750294621425,0.39152338,105160.0,105150.0,0.41231404]
[1750294621885,0.3820147,105160.0,105150.0,0.41231404]
[1750294622099,0.38201176,105160.0,105150.0,0.41231404]
[1750294626229,0.65837132,105150.0,105140.0,0.50636067]
[1750294626440,0.38184595,105150.0,105140.0,0.50636067]
[1750294626880,0.39135581,105150.0,105140.0,0.50636067]
[1750294627104,0.38184595,105150.0,105140.0,0.50632067]
[1750294627333,0.37233627,105150.0,105140.0,0.50632067]
[1750294627786,0.39135581,105150.0,105140.0,0.50632067]
[1750294628359,0.38184595,105150.0,105140.0,0.50632067]
[1750294628576,0.39135572,105150.0,105140.0,0.50632067]
[1750294628797,0.38184595,105150.0,105140.0,0.50632067]
[1750294629221,0.35901917,105150.0,105140.0,0.50632067]
[1750294629433,0.35901908,105150.0,105140.0,0.50632067]
[1750294629645,0.38184853,105150.0,105140.0,0.50632067]
[1750294629869,0.36852876,105150.0,105140.0,0.50632067]
[1750294630365,0.37803862,105150.0,105140.0,0.50632067]
[1750294630580,0.40086916,105150.0,105140.0,0.50632067]
[1750294631356,0.37803862,105150.0,105140.0,0.50632067]
[1750294631801,0.36852876,105150.0,105140.0,0.50632067]
[1750294632288,0.3913603,105150.0,105140.0,0.50632067]
[1750294632811,0.40087016,105150.0,105140.0,0.50632067]
[1750294634064,0.37803862,105150.0,105140.0,0.34928067]
[1750294634278,0.37803862,105150.0,105140.0,0.50632067]
[1750294634279,0.36852876,105150.0,105140.0,0.50632067]
[1750294634504,0.3913608,105150.0,105140.0,0.50632067]
[1750294634731,0.40087084,105150.0,105140.0,0.50632067]
[1750294636134,0.40087075,105150.0,105140.0,0.50632067]
[1750294636859,0.41038079,105150.0,105140.0,0.50632067]
[1750294637315,0.69641584,105150.0,105140.0,0.50632067]
[1750294638210,0.6869058,105150.0,105140.0,0.50632067]
[1750294638650,0.69641584,105150.0,105140.0,0.50632067]
[1750294638863,0.66407367,105150.0,105140.0,0.50632067]
[1750294639077,0.67358362,105150.0,105140.0,0.50628067]
[1750294639301,0.66407413,105150.0,105140.0,0.50628067]
[1750294639914,0.68690608,105150.0,105140.0,0.50628067]
[1750294640133,0.69641612,105150.0,105140.0,0.50628067]
[1750294646929,0.69729864,105150.0,105140.0,0.50628067]
[1750294649372,0.69729918,105150.0,105140.0,0.50628067]
[1750294650560,0.8684841,105150.0,105140.0,0.49677036]
[1750294651518,0.85897415,105150.0,105140.0,0.49677036]
[1750294652748,0.85897415,105150.0,105140.0,0.33977036]
[1750294652996,0.85897415,105150.0,105140.0,0.48721951]
[1750294653930,0.84946411,105150.0,105140.0,0.48721951]
[1750294654156,0.83995398,105150.0,105140.0,0.0343]
[1750294654348,0.53973359,105140.0,105130.0,0.0319]
[1750294654555,1.13640068,105140.0,105130.0,0.0319]
[1750294654794,1.13640068,105140.0,105130.0,0.15706]
[1750294655009,4.69633362,105140.0,105130.0,0.15706]
[1750294655251,4.68963968,105140.0,105130.0,0.15706]
[1750294655458,4.68963968,105140.0,105130.0,0.0001]
[1750294655676,4.72486631,105140.0,105130.0,0.15706]
[1750294656320,4.18163117,105140.0,105130.0,0.15706]
[1750294656532,4.69632688,105140.0,105130.0,0.15706]
[1750294656739,1.14308788,105140.0,105130.0,0.17216]
[1750294656952,0.85625533,105140.0,105130.0,0.17216]
[1750294657407,0.84956813,105140.0,105130.0,0.17216]
[1750294658285,0.84956813,105140.0,105130.0,0.0152]
[1750294658508,0.84956813,105140.0,105130.0,0.17216]
[1750294661343,0.84956813,105140.0,105130.0,0.0152]
[1750294661589,0.84956813,105140.0,105130.0,0.17216]
[1750294662242,0.84953538,105140.0,105130.0,0.17216]
[1750294663127,0.56253279,105140.0,105130.0,0.17216]
[1750294663347,0.84953538,105140.0,105130.0,0.17216]
[1750294664489,0.56253279,105140.0,105130.0,0.17216]
[1750294664711,0.84953538,105140.0,105130.0,0.15706]
[1750294664917,0.84953538,105140.0,105130.0,0.17216]
[1750294666693,0.84953538,105140.0,105130.0,0.17212]
[1750294666902,0.56253279,105140.0,105130.0,0.17212]
[1750294667137,0.84953538,105140.0,105130.0,0.17212]
[1750294667584,0.98235451,105140.0,105130.0,0.0001]
[1750294667815,4.59269051,105140.0,105130.0,0.0001]
[1750294668098,4.63074309,105140.0,105130.0,0.0001]
[1750294668318,4.67190309,105140.0,105130.0,0.0001]
[1750294669628,4.66301706,105140.0,105130.0,0.0001]
[1750294669835,4.63311706,105140.0,105130.0,0.0001]
[1750294670471,4.63311224,105140.0,105130.0,0.0001]
[1750294673586,4.40277438,105140.0,105130.0,0.0317]
[1750294673807,0.84953538,105140.0,105130.0,0.0317]
[1750294676059,0.85904623,105140.0,105130.0,0.24096408]
[1750294676519,0.85904623,105140.0,105130.0,0.24096426]
[1750294676951,0.85904623,105140.0,105130.0,0.25047584]
[1750294677177,0.66882367,105140.0,105130.0,0.25047584]
[1750294677392,0.85904623,105140.0,105130.0,0.25047584]
[1750294677827,0.67833479,105140.0,105130.0,0.25047584]
[1750294678266,0.86855735,105140.0,105130.0,0.25047584]
[1750294678744,0.58155476,105140.0,105130.0,0.25047584]
[1750294678969,0.57204391,105140.0,105130.0,0.24096426]
[1750294679901,0.8590465,105140.0,105130.0,0.24096426]
[1750294680127,0.84002435,105140.0,105130.0,0.0317]
[1750294682132,0.84002435,105140.0,105130.0,0.04121203]
[1750294682366,0.84002435,105140.0,105130.0,0.25047647]
[1750294682588,0.84002435,105140.0,105130.0,0.24096462]
[1750294683251,0.84002435,105140.0,105130.0,0.25047647]
[1750294683710,0.84002435,105140.0,105130.0,0.39784462]
[1750294684690,0.84953529,105140.0,105130.0,0.41686814]
[1750294685570,0.86855708,105140.0,105130.0,0.41686814]
[1750294685976,0.86855708,105140.0,105130.0,0.40735647]
[1750294686859,0.85904641,105140.0,105130.0,0.40735647]
[1750294687066,0.84953547,105140.0,105130.0,0.19809203]
[1750294687353,0.84002435,105140.0,105130.0,0.19809203]
[1750294688739,0.84002435,105140.0,105130.0,0.18858]
[1750294689582,0.84002435,105140.0,105130.0,0.38833268]
[1750294690442,0.84002435,105140.0,105130.0,0.19809203]
[1750294690647,0.84002435,105140.0,105130.0,0.18858]
[1750294691133,0.84002435,105140.0,105130.0,0.18854]
[1750294692198,0.84002435,105140.0,105130.0,0.0317]
[1750294692628,0.84002435,105140.0,105130.0,0.18854]
[1750294692842,0.84002435,105140.0,105130.0,0.0317]
[1750294693058,0.84002435,105140.0,105130.0,0.18854]
[1750294693700,0.84002435,105140.0,105130.0,0.19805203]
[1750294694449,0.84002435,105140.0,105130.0,0.38829268]
[1750294694676,0.84002435,105140.0,105130.0,0.39780462]
[1750294694911,0.84002435,105140.0,105130.0,0.18854]
[1750294695161,4.48149809,105140.0,105130.0,0.0001]
[1750294695369,4.55624773,105140.0,105130.0,0.0001]
[1750294695554,4.52774873,105140.0,105130.0,0.0001]
[1750294696886,4.49629509,105140.0,105130.0,0.0001]
[1750294697552,4.52481669,105140.0,105130.0,0.0001]
[1750294697978,4.62105845,105140.0,105130.0,0.0001]
[1750294698407,4.62105813,105140.0,105130.0,0.0001]
[1750294699576,4.59253653,105140.0,105130.0,0.0001]
[1750294700750,4.6496154,105140.0,105130.0,0.0001]
[1750294701178,4.67806195,105140.0,105130.0,0.0001]
[1750294704271,4.63479992,105140.0,105130.0,0.0001]
[1750294706536,4.61979992,105140.0,105130.0,0.0001]
[1750294707930,4.59128308,105140.0,105130.0,0.0001]
[1750294708950,4.59128165,105140.0,105130.0,0.0001]
[1750294713383,4.59128189,105140.0,105130.0,0.0001]
[1750294713586,4.5912821,105140.0,105130.0,0.0001]
[1750294714064,4.6065821,105140.0,105130.0,0.0001]
[1750294715288,4.66366097,105140.0,105130.0,0.0001]
[1750294715493,4.66366215,105140.0,105130.0,0.0001]
[1750294716949,5.15496215,105140.0,105130.0,0.0001]
[1750294717361,5.14827853,105140.0,105130.0,0.0001]
[1750294717569,5.44196474,105140.0,105130.0,0.0001]
[1750294717778,5.15496215,105140.0,105130.0,0.0001]
[1750294717990,5.15496302,105140.0,105130.0,0.0001]
[1750294718604,5.15496326,105140.0,105130.0,0.0001]
[1750294719585,5.13966326,105140.0,105130.0,0.0001]
[1750294720907,5.71409375,105140.0,105130.0,0.0001]
[1750294721527,5.71409524,105140.0,105130.0,0.0001]
[1750294722466,5.71409788,105140.0,105130.0,0.0001]
[1750294722691,5.71409788,105140.0,105130.0,0.0166]
[1750294723148,5.41091465,105140.0,105130.0,0.0317]
[1750294724384,5.46799901,105140.0,105130.0,0.0317]
[1750294724788,5.18080355,105140.0,105130.0,0.0317]
[1750294725414,5.14275097,105140.0,105130.0,0.0317]
[1750294725636,5.14280086,105140.0,105130.0,0.0317]
[1750294727353,5.14280066,105140.0,105130.0,0.0317]
[1750294729834,5.10176066,105140.0,105130.0,0.0317]
[1750294731157,5.10176079,105140.0,105130.0,0.0317]
[1750294733620,5.13984528,105140.0,105130.0,0.0317]
[1750294734766,5.18088528,105140.0,105130.0,0.0317]
[1750294735865,4.89379202,105140.0,105130.0,0.0317]
[1750294736077,5.174191,105140.0,105130.0,0.0317]
[1750294736298,5.18088511,105140.0,105130.0,0.0317]
[1750294739177,5.15803602,105140.0,105130.0,0.0317]
[1750294739367,5.06287266,105140.0,105130.0,0.0317]
[1750294740062,5.18092502,105140.0,105130.0,0.0317]
[1750294741007,4.77428326,105140.0,105130.0,0.0317]
[1750294741836,4.76758915,105140.0,105130.0,0.0317]
[1750294742075,4.77428298,105140.0,105130.0,0.0317]
[1750294743112,5.11428298,105140.0,105130.0,0.0166]
[1750294743340,5.15236439,105140.0,105130.0,0.0166]
[1750294744618,5.14567056,105140.0,105130.0,0.0317]
[1750294744806,5.15236463,105140.0,105130.0,0.0317]
[1750294745067,5.72666116,105140.0,105130.0,0.0317]
[1750294745724,5.69806516,105140.0,105130.0,0.0317]
[1750294746832,5.65998375,105140.0,105130.0,0.0317]
[1750294747702,5.65998354,105140.0,105130.0,0.0317]
[1750294748118,5.65998388,105140.0,105130.0,0.0317]
[1750294748605,5.65998388,105140.0,105130.0,0.0001]
[1750294748821,5.66950353,105140.0,105130.0,0.0001]
[1750294750344,6.25851961,105140.0,105130.0,0.0001]
[1750294750559,5.87265717,105140.0,105130.0,0.0001]
[1750294750979,5.81782212,105140.0,105130.0,0.0001]
[1750294751197,5.8602409,105140.0,105130.0,0.0001]
[1750294751401,5.86024113,105140.0,105130.0,0.0001]
[1750294752919,5.81782235,105140.0,105130.0,0.0001]
[1750294753125,5.88236346,105140.0,105130.0,0.0001]
[1750294755572,5.16587347,105130.0,105120.0,0.4164]
[1750294756079,5.16587012,105130.0,105120.0,0.4164]
[1750294756752,5.20392294,105130.0,105120.0,0.4164]
[1750294758175,4.91679301,105130.0,105120.0,0.4164]
[1750294758390,4.91679301,105130.0,105120.0,0.4314]
[1750294759144,4.91010152,105130.0,105120.0,0.4314]
[1750294759356,4.91678954,105130.0,105120.0,0.4314]
[1750294760455,4.72654889,105130.0,105120.0,0.4314]
[1750294760918,4.66944315,105130.0,105120.0,0.4314]
[1750294762028,4.66944102,105130.0,105120.0,0.4314]
[1750294763998,4.72654676,105130.0,105120.0,0.4314]
[1750294764560,4.71703491,105130.0,105120.0,0.4314]
[1750294765000,4.71703483,105130.0,105120.0,0.4314]
[1750294765223,4.65992909,105130.0,105120.0,0.4314]
[1750294766377,4.65324328,105130.0,105120.0,0.4314]
[1750294766583,4.71703511,105130.0,105120.0,0.4164]
[1750294767208,5.00416504,105130.0,105120.0,0.4164]
[1750294767622,4.71703511,105130.0,105120.0,0.4164]
[1750294768613,5.00416504,105130.0,105120.0,0.4001]
[1750294769283,5.00416504,105130.0,105120.0,0.4167]
[1750294769512,5.00416504,105130.0,105120.0,0.4001]
[1750294769751,5.66760082,105130.0,105120.0,0.02002735]
[1750294769959,3.753239,105110.0,105100.0,0.0332]
[1750294770185,4.98135923,105110.0,105100.0,0.0167]
[1750294770868,4.98136124,105110.0,105100.0,0.0167]
[1750294773587,4.58591144,105110.0,105100.0,0.0167]
[1750294773823,4.58590492,105110.0,105100.0,0.0167]
[1750294774854,4.71384481,105110.0,105100.0,0.0167]
[1750294776697,4.71384166,105110.0,105100.0,0.0167]
[1750294776907,4.71384166,105110.0,105100.0,0.0324]
[1750294777342,4.42650967,105110.0,105100.0,0.0324]
[1750294777554,4.71384166,105110.0,105100.0,0.0324]
[1750294778195,4.27002925,105110.0,105100.0,0.0324]
[1750294778406,4.36922959,105110.0,105100.0,0.0324]
[1750294778622,4.37590752,105110.0,105100.0,0.0324]
[1750294779033,4.34729952,105110.0,105100.0,0.0324]
[1750294779608,4.37583966,105110.0,105100.0,0.0324]
[1750294779808,4.12656115,105110.0,105100.0,0.0324]
[1750294780050,4.41389314,105110.0,105100.0,0.0324]
[1750294782002,4.08560115,105110.0,105100.0,0.0324]
[1750294782219,4.2795979,105110.0,105100.0,0.0324]
[1750294784265,4.06587879,105110.0,105100.0,0.0324]
[1750294788630,4.06588012,105110.0,105100.0,0.0324]
[1750294789038,4.02504012,105110.0,105100.0,0.0324]
[1750294789257,4.06588012,105110.0,105100.0,0.0324]
[1750294790209,4.02504012,105110.0,105100.0,0.0324]
[1750294790440,4.01836083,105110.0,105100.0,0.0324]
[1750294791411,3.73102884,105110.0,105100.0,0.0324]
[1750294792084,3.70818,105110.0,105100.0,0.0324]
[1750294792778,3.73098712,105110.0,105100.0,0.0324]
[1750294793220,3.70818,105110.0,105100.0,0.0324]
[1750294794518,3.70818,105110.0,105100.0,0.03477847]
[1750294794743,3.70818,105110.0,105100.0,0.0324]
[1750294794964,3.70818,105110.0,105100.0,0.03477842]
[1750294795419,3.70818,105110.0,105100.0,0.02992]
[1750294799033,3.70818,105110.0,105100.0,0.03229842]
[1750294800096,3.70818,105110.0,105100.0,0.02992]
[1750294800485,3.70818,105110.0,105100.0,0.03229839]
[1750294800677,3.70818,105110.0,105100.0,0.02992]
[1750294800879,3.70818,105110.0,105100.0,0.47337358]
[1750294801237,3.70818,105110.0,105100.0,0.18628]
[1750294801442,0.34,105110.0,105100.0,0.47337358]
[1750294801642,0.34,105110.0,105100.0,0.18628]
[1750294802053,0.34,105110.0,105100.0,0.18865839]
[1750294802260,0.34,105110.0,105100.0,0.47575197]
[1750294802473,0.34,105110.0,105100.0,0.66366853]
[1750294803147,0.34,105110.0,105100.0,0.37657495]
[1750294803523,0.34,105110.0,105100.0,0.66366853]
[1750294803731,0.34,105110.0,105100.0,0.37657495]
[1750294804560,0.35902631,105110.0,105100.0,0.39560344]
[1750294805077,0.34951302,105110.0,105100.0,0.39560344]
[1750294805278,0.35902631,105110.0,105100.0,0.39560344]
[1750294805470,0.35902622,105110.0,105100.0,0.39560344]
[1750294805748,0.36853951,105110.0,105100.0,0.39560344]
[1750294806162,0.34951302,105110.0,105100.0,0.39560344]
[1750294806343,0.35902622,105110.0,105100.0,0.39560344]
[1750294807581,0.36853961,105110.0,105100.0,0.39560344]
[1750294807816,0.35902622,105110.0,105100.0,0.39560344]
[1750294808076,0.36853961,105110.0,105100.0,0.39560344]
[1750294809418,0.37805327,105110.0,105100.0,0.39560344]
[1750294809649,0.37791056,105110.0,105100.0,0.39560344]
[1750294809873,0.66500414,105110.0,105100.0,0.39560344]
[1750294810097,0.66500405,105110.0,105100.0,0.39560344]
[1750294810325,0.66500396,105110.0,105100.0,0.39560344]
[1750294810550,0.3683969,105110.0,105100.0,0.39560344]
[1750294810772,0.65549048,105110.0,105100.0,0.39560344]
[1750294812099,0.64597709,105110.0,105100.0,0.39560344]
[1750294812620,0.34937031,105110.0,105100.0,0.39560344]
[1750294812843,0.33985729,105110.0,105100.0,0.77893878]
[1750294813314,0.53985729,105110.0,105100.0,0.77893878]
[1750294813772,0.33985729,105110.0,105100.0,1.06603236]
[1750294814274,0.33985729,105110.0,105100.0,0.77893878]
[1750294814817,0.33985729,105110.0,105100.0,1.06603236]
[1750294815036,0.33985729,105110.0,105100.0,0.77889483]
[1750294815464,0.33461335,105130.0,105120.0,0.24248398]
[1750294815696,4.04374739,105130.0,105120.0,0.39876398]
[1750294815924,3.76620906,105130.0,105120.0,0.40827628]
[1750294816353,3.75669721,105130.0,105120.0,0.40827628]
[1750294816776,3.75952552,105130.0,105120.0,0.40827628]
[1750294817216,3.75001367,105130.0,105120.0,0.40827628]
[1750294817455,4.04657515,105130.0,105120.0,0.40827628]
[1750294817611,3.75952552,105130.0,105120.0,0.40827628]
[1750294817844,0.372322,105130.0,105120.0,0.40827628]
[1750294818211,0.3818333,105130.0,105120.0,0.40827628]
[1750294818424,0.36281061,105130.0,105120.0,0.40827628]
[1750294820550,0.34,105130.0,105120.0,0.40827628]
[1750294821019,0.3495113,105130.0,105120.0,0.40827628]
[1750294821262,0.34,105130.0,105120.0,0.40827628]
[1750294821710,0.3495113,105130.0,105120.0,0.40827628]
[1750294821931,0.34,105130.0,105120.0,0.40827628]
[1750294822157,0.34951121,105130.0,105120.0,0.40827628]
[1750294822376,0.34,105130.0,105120.0,0.40827628]
[1750294823276,0.34951139,105130.0,105120.0,0.40827628]
[1750294823715,0.34,105130.0,105120.0,0.40827628]
[1750294823969,0.34951139,105130.0,105120.0,0.40827628]
[1750294824205,0.35902306,105130.0,105120.0,0.40827628]
[1750294824735,0.368535,105130.0,105120.0,0.25199637]
[1750294824974,0.65558454,105130.0,105120.0,0.41774867]
[1750294825220,0.35902306,105130.0,105120.0,0.41774867]
[1750294825445,0.35902297,105130.0,105120.0,0.41774867]
[1750294826148,0.36853482,105130.0,105120.0,0.41774867]
[1750294826832,0.65558445,105130.0,105120.0,0.41774867]
[1750294827042,0.66509639,105130.0,105120.0,0.41774867]
[1750294827488,4.22351704,105130.0,105120.0,0.0332]
[1750294827722,0.36853717,105120.0,105110.0,0.2519012]
[1750294827949,0.65558671,105120.0,105110.0,0.4081412]
[1750294828912,0.64607414,105120.0,105110.0,0.4081412]
[1750294829130,0.63656175,105120.0,105110.0,0.4081412]
[1750294829371,0.64607414,105120.0,105110.0,0.4081412]
[1750294829585,0.34,105120.0,105110.0,0.4081412]
[1750294830028,0.34951212,105120.0,105110.0,0.4081412]
[1750294830476,0.34,105120.0,105110.0,0.4081412]
[1750294830684,0.34951221,105120.0,105110.0,0.4081412]
[1750294831165,0.34951212,105120.0,105110.0,0.4081412]
[1750294831844,0.34,105120.0,105110.0,0.4081412]
[1750294833189,0.34,105120.0,105110.0,0.79143259]
[1750294833843,0.34951212,105120.0,105110.0,0.34814296]
[1750294834049,0.34951212,105120.0,105110.0,0.50434296]
[1750294834686,0.64607405,105120.0,105110.0,0.4081012]
[1750294835115,0.65558653,105120.0,105110.0,0.4081012]
[1750294835531,0.35902442,105120.0,105110.0,0.4081012]
[1750294835940,0.3685369,105120.0,105110.0,0.4081012]
[1750294836414,0.36853699,105120.0,105110.0,0.4081012]
[1750294836637,0.35902442,105120.0,105110.0,0.4081012]
[1750294837477,0.34951212,105120.0,105110.0,0.4081012]
[1750294837915,0.35902442,105120.0,105110.0,0.4081012]
[1750294838128,0.34951212,105120.0,105110.0,0.4081012]
[1750294838745,0.35902451,105120.0,105110.0,0.4081012]
[1750294839398,0.34951212,105120.0,105110.0,0.4081012]
[1750294839605,0.36853699,105120.0,105110.0,0.4081012]
[1750294839828,0.37804974,105120.0,105110.0,0.4081012]
[1750294840040,0.66509937,105120.0,105110.0,0.4081012]
[1750294840486,0.8363337,105120.0,105100.0,0.21720942]
[1750294840704,4.03328363,105110.0,105100.0,0.23786703]
[1750294840922,4.2463843,105110.0,105100.0,0.22835283]
[1750294841169,4.23687119,105110.0,105100.0,0.36552416]
[1750294841380,4.2273578,105110.0,105100.0,0.20932434]
[1750294841600,3.94030817,105110.0,105100.0,0.38455319]
[1750294841832,4.2273578,105110.0,105100.0,0.38455319]
[1750294842059,4.2273578,105110.0,105100.0,0.38455337]
[1750294842534,4.03708095,105110.0,105100.0,0.39406703]
[1750294842751,4.03708095,105110.0,105100.0,0.41116703]
[1750294842970,4.04659479,105110.0,105100.0,0.41116703]
[1750294843636,4.23687164,105110.0,105100.0,0.40165292]
[1750294844301,4.23687164,105110.0,105100.0,0.39213863]
[1750294844744,4.23687164,105110.0,105100.0,0.40165301]
[1750294846148,4.23687164,105110.0,105100.0,0.4111673]
[1750294846381,4.21404773,105110.0,105100.0,0.4111673]
[1750294846608,4.02377088,105110.0,105100.0,0.41116676]
[1750294847041,4.21404773,105110.0,105100.0,0.40165265]
[1750294847254,4.21404773,105110.0,105100.0,0.39213836]
[1750294847462,4.21404773,105110.0,105100.0,0.40165265]
[1750294848522,4.21404773,105110.0,105100.0,0.41116685]
[1750294848739,4.21404773,105110.0,105100.0,0.40165265]
[1750294850479,4.21404773,105110.0,105100.0,0.42816685]
[1750294850904,4.01425668,105110.0,105100.0,0.4281664]
[1750294851307,4.02377043,105110.0,105100.0,0.4281664]
[1750294851489,4.21404728,105110.0,105100.0,0.3996238]
[1750294851676,4.02377043,105110.0,105100.0,0.4186522]
[1750294852085,4.03328427,105110.0,105100.0,0.4186522]
[1750294853547,4.22356112,105110.0,105100.0,0.40913809]
[1750294853754,4.22356112,105110.0,105100.0,0.3996238]
[1750294853971,4.22356112,105110.0,105100.0,0.3995838]
[1750294854386,4.20453407,105110.0,105100.0,0.02661474]
[1750294854599,4.22734269,105110.0,105100.0,0.38258434]
[1750294854807,0.01902858,105100.0,105090.0,0.25354241]
[1750294855017,0.02854314,105100.0,105090.0,0.24402758]
[1750294855450,0.02854296,105100.0,105090.0,0.40018758]
[1750294855664,0.03805752,105100.0,105090.0,0.40018758]
[1750294856207,0.04757217,105100.0,105090.0,0.40018758]
[1750294856708,0.04757217,105100.0,105090.0,0.40970314]
[1750294857496,0.03805752,105100.0,105090.0,0.40970314]
[1750294857712,4.20455361,105100.0,105090.0,0.15626]
[1750294857917,4.22736532,105100.0,105090.0,0.17376]
[1750294858141,4.24645685,105100.0,105090.0,0.17376]
[1750294858374,4.24645685,105100.0,105090.0,0.20077565]
[1750294858635,4.24645685,105100.0,105090.0,0.17376]
[1750294858885,4.24645685,105100.0,105090.0,0.15626]
[1750294859655,4.25614937,105100.0,105090.0,0.15626]
[1750294860386,3.96909974,105100.0,105090.0,0.15626]
[1750294860611,4.25614937,105100.0,105090.0,0.15626]
[1750294861356,3.96909974,105100.0,105090.0,0.15626]
[1750294861601,4.25614937,105100.0,105090.0,0.15626]
[1750294863765,3.96909974,105100.0,105090.0,0.15626]
[1750294863975,4.25614937,105100.0,105090.0,0.0336]
[1750294864211,4.25614937,105100.0,105090.0,0.18976]
[1750294865794,3.96909974,105100.0,105090.0,0.18976]
[1750294866022,4.25614937,105100.0,105090.0,0.18976]
[1750294866246,4.25614937,105100.0,105090.0,0.19927565]
[1750294867746,4.22754337,105100.0,105090.0,0.19927565]
[1750294868919,0.37250423,105100.0,105090.0,0.41813439]
[1750294869145,0.41056157,105100.0,105090.0,0.41813439]
[1750294869375,0.42007622,105100.0,105090.0,0.40861938]
[1750294869600,0.41056157,105100.0,105090.0,0.41813439]
[1750294870055,0.40104701,105100.0,105090.0,0.41813439]
[1750294870559,0.40104692,105100.0,105090.0,0.41813439]
[1750294870772,0.41056148,105100.0,105090.0,0.41813439]
[1750294871402,0.40104692,105100.0,105090.0,0.41813439]
[1750294872300,0.41056148,105100.0,105090.0,0.41813439]
[1750294872750,0.34969252,105100.0,105090.0,0.41813439]
[1750294872971,0.02854034,105110.0,105100.0,0.25283809]
[1750294873227,0.36854025,105110.0,105100.0,0.25283809]
[1750294873486,0.40086605,105110.0,105100.0,0.25283809]
[1750294873704,0.60065674,105110.0,105100.0,0.25283827]
[1750294873929,0.60065674,105110.0,105100.0,0.26235247]
[1750294874560,0.69742952,105110.0,105100.0,0.27186658]
[1750294874786,0.66888845,105110.0,105100.0,0.27186658]
[1750294875002,0.67840211,105110.0,105100.0,0.27186658]
[1750294875867,0.68779847,105110.0,105100.0,0.27186658]
[1750294876080,0.69731222,105110.0,105100.0,0.27186658]
[1750294876517,0.68779847,105110.0,105100.0,0.27186658]
[1750294877174,0.38172198,105110.0,105100.0,0.27186658]
[1750294877437,0.35890956,105110.0,105100.0,0.27186658]
[1750294877651,0.37793642,105110.0,105100.0,0.27186658]
[1750294877881,0.37793633,105110.0,105100.0,0.27186658]
[1750294878328,0.36842285,105110.0,105100.0,0.27186658]
[1750294878571,0.00939636,105110.0,105100.0,0.27186658]
[1750294879079,0.40086448,105120.0,105110.0,0.25111728]
[1750294879320,0.68791411,105120.0,105110.0,0.40723728]
[1750294879549,0.86866065,105120.0,105110.0,0.39772408]
[1750294879813,0.85914817,105120.0,105110.0,0.39772417]
[1750294880481,0.19027685,105110.0,105100.0,0.22319495]
[1750294880700,0.82683977,105110.0,105100.0,0.39834416]
[1750294880961,0.53979014,105110.0,105100.0,0.41737283]
[1750294881193,0.53979014,105110.0,105100.0,0.42688694]
[1750294881194,0.64607667,105110.0,105100.0,0.42688694]
[1750294881658,0.85538093,105110.0,105100.0,0.41737283]
[1750294882111,0.87819454,105110.0,105100.0,0.41737283]
[1750294882352,0.65559024,105110.0,105100.0,0.42688694]
[1750294883166,0.66510408,105110.0,105100.0,0.42688694]
[1750294883388,0.67456511,105110.0,105100.0,0.42688694]
[1750294883907,0.86484196,105110.0,105100.0,0.40785854]
[1750294884120,0.87814299,105110.0,105100.0,0.39834416]
[1750294884557,0.85532867,105110.0,105100.0,0.41737265]
[1750294884995,0.85532867,105110.0,105100.0,0.40785845]
[1750294885629,0.87814267,105110.0,105100.0,0.40785845]
[1750294885838,0.85532867,105110.0,105100.0,0.40785845]
[1750294886851,0.36848835,105110.0,105100.0,0.40785845]
[1750294887078,0.67835121,105110.0,105100.0,0.41737256]
[1750294887324,0.66505182,105110.0,105100.0,0.40785845]
[1750294887542,0.68786507,105110.0,105100.0,0.40785845]
[1750294887764,0.66505182,105110.0,105100.0,0.40785845]
[1750294887979,0.87814175,105110.0,105100.0,0.40785845]
[1750294888203,0.87814175,105110.0,105100.0,0.39834416]
[1750294888901,0.87814175,105110.0,105100.0,0.40785845]
[1750294889590,0.87814175,105110.0,105100.0,0.41737265]
[1750294889811,0.66505182,105110.0,105100.0,0.42688676]
[1750294890028,0.85532867,105110.0,105100.0,0.40785845]
[1750294890255,0.87814172,105110.0,105100.0,0.40785845]
[1750294890923,0.87814172,105110.0,105100.0,0.39834416]
[1750294891134,0.86862815,105110.0,105100.0,0.39834416]
[1750294891349,0.86862815,105110.0,105100.0,0.40785854]
[1750294891790,0.86862815,105110.0,105100.0,0.41737283]
[1750294892678,0.86862815,105110.0,105100.0,0.4268864]
[1750294892922,0.6783513,105110.0,105100.0,0.4268864]
[1750294893382,0.86862815,105110.0,105100.0,0.41737229]
[1750294893624,0.58157852,105110.0,105100.0,0.39834416]
[1750294893869,3.92701818,105100.0,105090.0,0.24424391]
[1750294894108,4.20455361,105100.0,105090.0,0.23472862]
[1750294894337,4.21785719,105100.0,105090.0,0.39084862]
[1750294894785,4.20834263,105100.0,105090.0,0.21712862]
[1750294895045,4.20834263,105100.0,105090.0,0.37324862]
[1750294895505,4.20834263,105100.0,105090.0,0.15618]
[1750294895726,4.24224263,105100.0,105090.0,0.0001]
[1750294895943,4.24224263,105100.0,105090.0,0.15618]
[1750294896162,4.22554263,105100.0,105090.0,0.15618]
[1750294897252,4.24853063,105100.0,105090.0,0.15618]
[1750294897986,4.79716588,105100.0,105090.0,0.0001]
[1750294898213,4.7676532,105100.0,105090.0,0.0001]
[1750294898441,4.79626178,105100.0,105090.0,0.0001]
[1750294898673,4.98383407,105100.0,105090.0,0.0001]
[1750294898915,4.91429541,105100.0,105090.0,0.0001]
[1750294899599,4.92947981,105100.0,105090.0,0.0001]
[1750294899822,4.95228128,105100.0,105090.0,0.0001]
[1750294900273,4.6459648,105100.0,105090.0,0.0001]
[1750294900497,4.83625975,105100.0,105090.0,0.0001]
[1750294903169,4.83624852,105100.0,105090.0,0.0001]
[1750294903617,4.807747,105100.0,105090.0,0.0001]
[1750294904278,4.89460495,105100.0,105090.0,0.0001]
[1750294904527,4.88064428,105100.0,105090.0,0.0001]
[1750294904954,4.9091458,105100.0,105090.0,0.0001]
[1750294905411,4.87769216,105100.0,105090.0,0.0001]
[1750294905625,4.84919064,105100.0,105090.0,0.0001]
[1750294905844,4.82228785,105100.0,105090.0,0.0001]
[1750294906037,4.82228153,105100.0,105090.0,0.0001]
[1750294906522,4.53169668,105100.0,105090.0,0.0001]
[1750294908406,4.87169668,105100.0,105090.0,0.0001]
[1750294908817,4.86502729,105100.0,105090.0,0.0001]
[1750294909039,4.87169524,105100.0,105090.0,0.0001]
[1750294910593,4.87169524,105100.0,105090.0,0.0001]
[1750294911680,4.86502729,105100.0,105090.0,0.0001]
[1750294911892,4.87169428,105100.0,105090.0,0.0001]
[1750294914743,4.87169416,105100.0,105090.0,0.0001]